bitfinex-derivatives/quotes_BTCF0:USTF0_20250718
["timestamp","ask_amount","ask_price","bid_price","bid_amount"]
[1752856051883,0.1740048,117670.0,117660.0,1.45253618]
[1752856052192,0.5388048,117670.0,117660.0,1.45353618]
[1752856052391,0.1780048,117670.0,117660.0,1.45353618]
[1752856052580,0.00812,117670.0,117660.0,1.45353618]
[1752856053090,0.00739,117670.0,117660.0,1.81433618]
[1752856054092,0.00739,117670.0,117660.0,1.45353618]
[1752856054593,0.00739,117670.0,117660.0,1.81433618]
[1752856055796,0.77213053,117700.0,117680.0,0.10709]
[1752856055797,0.65602263,117700.0,117680.0,0.10709]
[1752856056091,0.37984137,117700.0,117690.0,0.82718288]
[1752856056287,0.18888287,117700.0,117690.0,0.82718288]
[1752856056487,0.01904137,117700.0,117690.0,0.82718288]
[1752856056686,0.18888287,117700.0,117690.0,0.82718288]
[1752856057096,0.55641287,117700.0,117690.0,0.82718288]
[1752856057394,0.60582287,117700.0,117690.0,0.314956]
[1752856057597,0.59317287,117700.0,117690.0,0.26982731]
[1752856057794,0.60217287,117700.0,117690.0,0.26982731]
[1752856057993,0.60217287,117700.0,117690.0,0.78205419]
[1752856058191,0.56468287,117700.0,117690.0,1.40521419]
[1752856058398,0.55668287,117700.0,117690.0,1.40621419]
[1752856058697,0.55668287,117700.0,117690.0,0.78305419]
[1752856058998,0.61776287,117700.0,117690.0,0.89390731]
[1752856059398,0.61176287,117700.0,117690.0,0.27082731]
[1752856059597,0.61176287,117700.0,117690.0,0.89490731]
[1752856059900,0.61176287,117700.0,117690.0,0.27182731]
[1752856060098,0.66236287,117700.0,117690.0,0.261476]
[1752856060301,1.79766975,117700.0,117690.0,0.002]
[1752856060690,1.79766975,117700.0,117690.0,0.171856]
[1752856060993,1.28544287,117700.0,117690.0,0.268616]
[1752856061398,1.28498287,117700.0,117690.0,0.268616]
[1752856061790,1.26139287,117700.0,117690.0,0.316956]
[1752856063193,1.28498287,117700.0,117690.0,0.316956]
[1752856064202,1.28498287,117700.0,117690.0,0.09876]
[1752856064402,1.28544287,117700.0,117690.0,0.268616]
[1752856064897,1.28498287,117700.0,117690.0,0.09876]
[1752856065203,1.79766975,117700.0,117690.0,0.002]
[1752856066201,1.17458975,117700.0,117690.0,0.002]
[1752856066403,1.28560287,117700.0,117690.0,0.002]
[1752856066605,1.79782975,117700.0,117690.0,0.002]
[1752856067104,1.79782975,117700.0,117690.0,0.1718559]
[1752856067299,1.79782975,117700.0,117690.0,0.002]
[1752856070904,1.79782975,117700.0,117680.0,0.01744026]
[1752856070905,0.281536,117690.0,117680.0,0.01744026]
[1752856071110,0.1957149,117670.0,117660.0,0.1392336]
[1752856071311,1.6257049,117670.0,117660.0,0.3091294]
[1752856071510,1.6261649,117670.0,117660.0,0.3091294]
[1752856072009,1.6257049,117670.0,117660.0,0.3574694]
[1752856073310,1.6267049,117670.0,117660.0,0.3624694]
[1752856073708,1.6262049,117670.0,117660.0,0.05161]
[1752856073913,1.6272049,117670.0,117660.0,0.03678]
[1752856074109,0.2200392,117660.0,117650.0,0.37924204]
[1752856074413,0.6419192,117660.0,117650.0,0.33676404]
[1752856074614,0.6423792,117660.0,117650.0,0.28415442]
[1752856075014,0.6419192,117660.0,117650.0,0.28415442]
[1752856075208,0.6419192,117660.0,117650.0,0.33249442]
[1752856075408,0.41094,117660.0,117650.0,0.33249442]
[1752856075713,1.00888,117660.0,117650.0,0.8455337]
[1752856075914,1.1787793,117660.0,117650.0,0.8455337]
[1752856076114,1.00888,117660.0,117650.0,0.8455337]
[1752856076314,1.1787792,117660.0,117650.0,0.33349442]
[1752856076517,1.2398592,117660.0,117650.0,0.33349442]
[1752856076711,1.2398592,117660.0,117650.0,0.33249442]
[1752856076917,1.2408592,117660.0,117650.0,0.33549442]
[1752856077314,1.2162692,117660.0,117650.0,0.33349442]
[1752856077519,1.2162692,117660.0,117650.0,0.33449442]
[1752856078020,1.2162692,117660.0,117650.0,0.33349442]
[1752856078809,1.2162692,117660.0,117650.0,0.16358072]
[1752856079113,1.2162692,117660.0,117650.0,0.33349432]
[1752856079114,1.2398592,117660.0,117650.0,0.33349432]
[1752856079314,1.2398592,117660.0,117650.0,0.16358072]
[1752856079509,1.2398592,117660.0,117650.0,0.07009072]
[1752856079510,1.2403192,117660.0,117650.0,0.07009072]
[1752856079710,1.2403192,117660.0,117650.0,0.01848072]
[1752856079711,1.75235848,117660.0,117650.0,0.01848072]
[1752856080116,1.2398592,117660.0,117650.0,0.28515422]
[1752856080518,1.2398592,117660.0,117650.0,0.11524072]
[1752856080918,0.41094,117660.0,117650.0,0.8455335]
[1752856081218,0.989,117670.0,117660.0,0.2991591]
[1752856081424,1.1588846,117670.0,117660.0,0.59874928]
[1752856081723,1.1588846,117670.0,117660.0,0.76864838]
[1752856081924,0.989,117670.0,117660.0,0.76864838]
[1752856082423,0.37966704,117680.0,117670.0,0.1698847]
[1752856082623,0.5306558,117690.0,117680.0,0.2426803]
[1752856082824,1.1591758,117690.0,117680.0,0.76861958]
[1752856083027,1.29911817,117700.0,117690.0,0.1698558]
[1752856083226,0.66696445,117700.0,117690.0,0.76860508]
[1752856083429,0.20836585,117700.0,117690.0,0.76860508]
[1752856083628,0.01904137,117700.0,117690.0,0.76860508]
[1752856083823,0.62832,117710.0,117700.0,0.1698414]
[1752856084023,1.17833688,117710.0,117700.0,0.76859068]
[1752856084230,1.17833688,117710.0,117700.0,0.77858723]
[1752856084428,0.18921688,117710.0,117700.0,0.77858723]
[1752856084819,0.01938988,117710.0,117700.0,0.77858723]
[1752856085024,0.18921678,117710.0,117700.0,0.77858723]
[1752856085221,0.18921678,117710.0,117700.0,1.40638723]
[1752856085426,0.55001678,117710.0,117700.0,1.40638723]
[1752856086331,0.55001678,117710.0,117700.0,1.40738723]
[1752856087025,0.55001678,117710.0,117700.0,0.89534795]
[1752856087228,0.55001678,117710.0,117700.0,0.60974583]
[1752856087427,0.55001678,117710.0,117700.0,1.40642733]
[1752856088631,0.55001678,117710.0,117700.0,0.77958733]
[1752856088828,0.55001678,117710.0,117700.0,1.40578733]
[1752856089229,0.55101678,117710.0,117700.0,1.40878733]
[1752856089431,0.55101678,117710.0,117700.0,1.76958733]
[1752856089432,0.02038988,117710.0,117700.0,1.76958733]
[1752856089729,0.5316271,117710.0,117700.0,1.40846733]
[1752856091031,0.5316271,117710.0,117700.0,1.40870733]
[1752856091226,0.5316271,117710.0,117700.0,0.78258733]
[1752856091422,0.5316271,117710.0,117700.0,1.40846733]
[1752856092030,0.5316271,117710.0,117700.0,0.78258733]
[1752856092230,1.74264638,117710.0,117700.0,0.004]
[1752856092430,1.74284638,117710.0,117700.0,0.004]
[1752856094329,1.74284638,117710.0,117700.0,1e-07]
[1752856094523,1.74284638,117710.0,117690.0,0.0548457]
[1752856094524,0.169856,117690.0,117680.0,0.03766]
[1752856094723,0.1923004,117680.0,117670.0,0.09015313]
[1752856094929,0.6030504,117680.0,117670.0,0.15104427]
[1752856095134,0.6030504,117680.0,117670.0,0.10405313]
[1752856095534,0.6030504,117680.0,117670.0,0.11418275]
[1752856095734,0.5667304,117680.0,117670.0,0.28606755]
[1752856095930,0.6326158,117690.0,117680.0,0.1698704]
[1752856096132,1.3015228,117690.0,117680.0,0.0139]
[1752856096432,1.3154128,117690.0,117680.0,0.0139]
[1752856096635,1.3154128,117690.0,117680.0,0.08671]
[1752856096934,1.2729458,117690.0,117680.0,0.08871]
[1752856097327,1.15754508,117690.0,117680.0,0.002]
[1752856097536,1.78354508,117690.0,117680.0,0.002]
[1752856097934,1.2715058,117690.0,117680.0,0.002]
[1752856098132,1.2715058,117690.0,117680.0,0.03966]
[1752856098826,1.2715058,117690.0,117680.0,0.002]
[1752856099831,1.2715058,117690.0,117680.0,0.1718704]
[1752856100035,1.33828215,117690.0,117680.0,0.002]
[1752856100232,1.85032143,117690.0,117680.0,0.002]
[1752856100432,0.2262503,117680.0,117670.0,0.02234313]
[1752856100633,0.6574303,117680.0,117670.0,0.02234313]
[1752856100833,1.2828303,117680.0,117670.0,0.02234313]
[1752856101241,1.2828303,117680.0,117670.0,0.18722793]
[1752856101941,0.6574303,117680.0,117670.0,0.22488793]
[1752856102134,1.2828303,117680.0,117670.0,0.22988793]
[1752856102340,1.2838303,117680.0,117670.0,0.22988793]
[1752856102543,1.2838303,117680.0,117670.0,0.23188793]
[1752856102838,1.2836303,117680.0,117670.0,0.26703793]
[1752856103048,0.6584303,117680.0,117670.0,0.28845793]
[1752856103234,1.2489903,117680.0,117670.0,0.84954694]
[1752856104339,0.6241103,117680.0,117670.0,0.84954694]
[1752856104544,1.2130903,117680.0,117670.0,0.84954694]
[1752856104738,0.8519303,117680.0,117670.0,0.84954694]
[1752856105042,1.2127303,117680.0,117670.0,0.84954694]
[1752856105238,1.2487903,117680.0,117670.0,0.84954694]
[1752856105442,1.2831103,117680.0,117670.0,0.33750766]
[1752856105642,1.2831103,117680.0,117670.0,0.16762286]
[1752856106043,1.2828703,117680.0,117670.0,0.06212286]
[1752856106244,1.2828703,117680.0,117670.0,0.06964286]
[1752856106441,1.2828703,117680.0,117670.0,0.16762286]
[1752856107542,1.2828303,117680.0,117670.0,0.16762286]
[1752856108545,0.6584303,117680.0,117670.0,0.16762286]
[1752856108744,1.2822303,117680.0,117670.0,0.16762286]
[1752856109345,1.2822303,117680.0,117670.0,0.11869286]
[1752856109648,1.2822303,117680.0,117670.0,0.06212286]
[1752856109848,1.79426958,117680.0,117670.0,0.02446286]
[1752856111044,1.79374958,117680.0,117670.0,0.02446286]
[1752856111348,1.2817103,117680.0,117670.0,0.02446286]
[1752856111645,1.79374958,117680.0,117670.0,0.02446286]
[1752856113745,1.2817103,117680.0,117670.0,0.02446286]
[1752856113952,1.2817103,117680.0,117670.0,0.11700286]
[1752856115243,1.2817103,117680.0,117670.0,0.00711973]
[1752856115444,1.79374958,117680.0,117670.0,0.00711973]
[1752856116546,1.2817103,117680.0,117670.0,0.04402973]
[1752856116751,1.2817103,117680.0,117670.0,0.07810973]
[1752856117151,1.2817103,117680.0,117670.0,0.04402973]
[1752856119153,1.2817103,117680.0,117670.0,0.09965973]
[1752856119553,1.2817103,117680.0,117670.0,0.00711973]
[1752856119948,1.79374958,117680.0,117670.0,0.00711973]
[1752856122353,0.1698991,117660.0,117650.0,0.13674149]
[1752856122557,1.6295691,117660.0,117650.0,0.18105149]
[1752856122853,1.6295691,117660.0,117650.0,0.12016035]
[1752856123450,2.14160838,117660.0,117650.0,0.08137186]
[1752856123654,1.6295691,117660.0,117650.0,0.07154072]
[1752856123852,1.6295691,117660.0,117650.0,0.11302072]
[1752856124048,1.6295691,117660.0,117650.0,0.11902072]
[1752856124250,1.6305691,117660.0,117650.0,0.11902072]
[1752856125059,1.6295691,117660.0,117650.0,0.11002072]
[1752856125258,1.6345691,117660.0,117650.0,0.11102072]
[1752856125861,1.6299991,117660.0,117650.0,0.32916412]
[1752856126061,1.6080591,117660.0,117650.0,0.32916412]
[1752856126860,1.6080591,117660.0,117650.0,0.39005526]
[1752856127055,1.6080591,117660.0,117650.0,0.32916412]
[1752856127254,0.7266,117660.0,117650.0,0.8412034]
[1752856127454,0.005,117660.0,117650.0,0.8412034]
[1752856127654,0.3658,117660.0,117650.0,0.90209454]
[1752856127855,0.3658,117660.0,117650.0,0.8412034]
[1752856127856,0.005,117660.0,117650.0,0.8412034]
[1752856128157,0.005,117660.0,117650.0,0.91731732]
[1752856128556,0.174899,117660.0,117650.0,0.91731732]
[1752856128755,0.005,117660.0,117650.0,1.27811732]
[1752856128951,0.005,117660.0,117650.0,2.8333886]
[1752856129156,0.005,117660.0,117650.0,2.39647468]
[1752856129353,0.005,117660.0,117650.0,1.96068427]
[1752856130264,0.005,117660.0,117650.0,1.71068427]
[1752856130965,0.005,117660.0,117650.0,1.44824427]
[1752856131167,0.005,117660.0,117650.0,1.08744427]
[1752856131470,0.535699,117660.0,117650.0,1.08744427]
[1752856131655,0.535699,117660.0,117650.0,0.91745227]
[1752856131861,0.623979,117660.0,117650.0,0.91745227]
[1752856132061,0.589229,117660.0,117650.0,0.91745227]
[1752856132262,0.566559,117660.0,117650.0,0.91745227]
[1752856132867,0.623979,117660.0,117650.0,0.40541299]
[1752856133069,0.645919,117660.0,117650.0,0.32916422]
[1752856133471,0.645919,117660.0,117650.0,0.22033142]
[1752856133668,0.645919,117660.0,117650.0,0.39024492]
[1752856133870,1.269039,117660.0,117650.0,0.39024492]
[1752856134070,1.269039,117660.0,117650.0,0.22033142]
[1752856134469,1.273609,117660.0,117650.0,0.11647142]
[1752856135069,1.78564828,117660.0,117650.0,0.01848072]
[1752856139169,1.273609,117660.0,117650.0,0.01848072]
[1752856139367,1.78564828,117660.0,117650.0,0.01848072]
[1752856139872,1.79529221,117660.0,117650.0,0.01848072]
[1752856140273,1.78564828,117660.0,117650.0,0.01848072]
[1752856140772,1.78564828,117660.0,117650.0,0.05539072]
[1752856141167,1.273609,117660.0,117650.0,0.05539072]
[1752856141372,1.273609,117660.0,117650.0,0.11115072]
[1752856141768,0.650489,117660.0,117650.0,0.11115072]
[1752856141972,1.273569,117660.0,117650.0,0.11115072]
[1752856142571,1.273569,117660.0,117650.0,0.05539072]
[1752856142572,1.78560828,117660.0,117650.0,0.05539072]
[1752856143172,1.78560828,117660.0,117650.0,0.06884072]
[1752856143474,1.273569,117660.0,117650.0,0.11115072]
[1752856145574,1.78560828,117660.0,117650.0,0.01848072]
[1752856146364,1.273569,117660.0,117650.0,0.01848072]
[1752856146564,1.78560828,117660.0,117650.0,0.01848072]
[1752856147271,1.273569,117660.0,117650.0,0.05194072]
[1752856147468,1.273569,117660.0,117650.0,0.27761412]
[1752856147673,1.268879,117660.0,117650.0,0.15476072]
[1752856148578,1.268879,117660.0,117650.0,0.32467412]
[1752856148775,0.623979,117660.0,117650.0,0.32467412]
[1752856148973,1.246939,117660.0,117650.0,0.32467412]
[1752856149170,0.005,117660.0,117650.0,0.8977941]
[1752856149371,0.3608,117680.0,117670.0,0.05409]
[1752856149576,0.5306556,117690.0,117680.0,0.3061501]
[1752856149774,0.37941557,117700.0,117690.0,0.3061356]
[1752856149970,0.03725421,117700.0,117690.0,1.44109488]
[1752856150375,0.3608,117710.0,117700.0,0.2573913]
[1752856150574,0.44500851,117720.0,117710.0,0.2239169]
[1752856150769,0.57998091,117720.0,117710.0,0.73595618]
[1752856150974,0.57998091,117720.0,117710.0,1.37220618]
[1752856151170,0.04936851,117720.0,117710.0,1.44094618]
[1752856151378,0.6618986,117740.0,117730.0,0.199328]
[1752856151570,0.41482,117740.0,117730.0,0.81811728]
[1752856151769,0.39564,117750.0,117740.0,0.2519736]
[1752856151972,0.1697692,117750.0,117740.0,0.76401288]
[1752856152177,0.5305692,117750.0,117740.0,0.76401288]
[1752856152376,0.5305692,117750.0,117740.0,0.2519736]
[1752856152576,0.1697692,117750.0,117740.0,0.76401288]
[1752856152778,0.68936175,117760.0,117750.0,0.2385092]
[1752856153080,0.68936175,117760.0,117750.0,1.38679848]
[1752856153081,0.5305692,117760.0,117750.0,1.38679848]
[1752856154080,0.5355692,117760.0,117750.0,1.38779848]
[1752856154781,0.5395692,117760.0,117750.0,1.38779848]
[1752856155778,0.5395692,117760.0,117750.0,1.21786928]
[1752856155985,0.5947892,117760.0,117750.0,0.70583]
[1752856156185,0.5947892,117760.0,117750.0,0.8755992]
[1752856156380,0.5744092,117760.0,117750.0,1.38763848]
[1752856156582,0.3698,117760.0,117750.0,1.38759848]
[1752856156879,0.009,117760.0,117750.0,1.89963776]
[1752856157074,0.1787548,117760.0,117750.0,1.89963776]
[1752856157278,0.009,117760.0,117750.0,1.89963776]
[1752856157986,0.1767548,117760.0,117750.0,1.89963776]
[1752856158187,0.1767548,117760.0,117750.0,2.26043776]
[1752856158484,0.007,117760.0,117750.0,2.26043776]
[1752856158983,0.007,117760.0,117750.0,2.43028576]
[1752856159487,0.1767548,117760.0,117750.0,2.43028576]
[1752856159678,0.1717548,117760.0,117750.0,2.42928576]
[1752856159881,0.1747548,117760.0,117750.0,2.43028576]
[1752856160088,0.1747548,117760.0,117750.0,2.06948576]
[1752856160691,0.005,117760.0,117750.0,2.06948576]
[1752856162387,0.5895748,117760.0,117750.0,0.13728]
[1752856162578,0.6244148,117760.0,117750.0,0.3070492]
[1752856162778,0.5895748,117760.0,117750.0,0.81908848]
[1752856164787,0.6244148,117760.0,117750.0,0.81908848]
[1752856165989,0.6447948,117760.0,117750.0,0.3070492]
[1752856166185,0.6447948,117760.0,117750.0,0.13728]
[1752856166384,0.6487448,117760.0,117750.0,0.03446]
[1752856167089,0.6487448,117760.0,117750.0,0.1707692]
[1752856167287,0.6487448,117760.0,117750.0,0.001]
[1752856167589,0.6487448,117760.0,117750.0,0.1707692]
[1752856167789,0.6487448,117760.0,117750.0,0.001]
[1752856167990,0.6487448,117760.0,117750.0,0.1707692]
[1752856168190,0.6487448,117760.0,117750.0,0.001]
[1752856169083,1.78290408,117760.0,117750.0,0.001]
[1752856169290,1.2708648,117760.0,117750.0,0.001]
[1752856169491,1.2708648,117760.0,117750.0,0.2042292]
[1752856169886,1.2708648,117760.0,117750.0,0.03446]
[1752856170786,0.6487448,117760.0,117750.0,0.001]
[1752856170992,0.6487448,117760.0,117730.0,0.62103169]
[1752856170993,0.2740337,117740.0,117730.0,0.10899241]
[1752856171186,1.6203737,117740.0,117730.0,0.26893703]
[1752856171593,1.6203737,117740.0,117730.0,0.09913893]
[1752856172093,1.6203737,117740.0,117730.0,0.10611893]
[1752856172488,1.6213737,117740.0,117730.0,0.05137893]
[1752856172694,2.13341298,117740.0,117730.0,0.01804893]
[1752856172895,1.6213737,117740.0,117730.0,0.01804893]
[1752856173285,1.68801948,117740.0,117730.0,0.01804893]
[1752856173492,1.68797948,117740.0,117730.0,0.001]
[1752856173994,0.2768881,117730.0,117720.0,0.08244]
[1752856174193,0.6376881,117730.0,117720.0,0.08244]
[1752856174695,0.2742425,117720.0,117710.0,0.24066877]
[1752856174885,0.6350425,117720.0,117710.0,0.32241877]
[1752856175292,0.6350425,117720.0,117710.0,0.83445805]
[1752856175687,0.6153825,117720.0,117710.0,0.83445805]
[1752856175893,0.6173825,117720.0,117710.0,0.83445805]
[1752856176295,0.6173825,117720.0,117710.0,0.84425293]
[1752856176995,0.6213825,117720.0,117710.0,0.84525293]
[1752856177395,0.6213825,117720.0,117710.0,0.66563115]
[1752856177695,0.6213825,117720.0,117710.0,0.05138187]
[1752856177696,0.6437025,117720.0,117710.0,0.05138187]
[1752856178199,1.2433825,117720.0,117710.0,0.83545805]
[1752856178496,0.3668,117720.0,117710.0,0.83545805]
[1752856178694,0.006,117720.0,117710.0,1.45745805]
[1752856178898,0.006,117720.0,117710.0,1.81825805]
[1752856179094,0.3608,117740.0,117720.0,0.0531]
[1752856179294,0.67707176,117750.0,117740.0,0.2918436]
[1752856179495,1.29907176,117750.0,117740.0,0.81736288]
[1752856179700,1.38276176,117750.0,117740.0,0.81736288]
[1752856179898,1.39142176,117750.0,117740.0,0.3053236]
[1752856180093,0.79316176,117750.0,117740.0,0.3053236]
[1752856180294,0.1273398,117740.0,117730.0,0.03333]
[1752856180495,0.252428,117730.0,117720.0,0.03433]
[1752856180698,1.180878,117730.0,117720.0,0.2397725]
[1752856180898,1.214338,117730.0,117720.0,0.2532525]
[1752856181095,1.186018,117730.0,117720.0,0.2522525]
[1752856181402,1.186018,117730.0,117720.0,0.76429178]
[1752856181591,1.190018,117730.0,117720.0,0.76529178]
[1752856181795,1.191018,117730.0,117720.0,0.2532525]
[1752856182402,1.190018,117730.0,117720.0,0.2532525]
[1752856182599,1.189978,117730.0,117720.0,0.08344]
[1752856182802,1.218298,117730.0,117720.0,0.08344]
[1752856183100,1.214298,117730.0,117720.0,0.08444]
[1752856184697,1.214298,117730.0,117720.0,0.2542524]
[1752856185093,1.205638,117730.0,117720.0,0.13754]
[1752856185296,1.268568,117730.0,117720.0,0.09142]
[1752856187302,0.646688,117730.0,117720.0,0.09142]
[1752856187498,1.259828,117730.0,117720.0,0.3073524]
[1752856187907,1.259828,117730.0,117720.0,0.13754]
[1752856188104,1.268488,117730.0,117720.0,0.002]
[1752856188601,1.78052728,117730.0,117720.0,0.002]
[1752856188802,0.2839024,117720.0,117710.0,0.01705187]
[1752856189103,0.6447024,117720.0,117710.0,0.01705187]
[1752856189907,0.6467024,117720.0,117710.0,0.01805187]
[1752856190907,1.15974168,117720.0,117710.0,0.01139187]
[1752856191103,0.2699013,117700.0,117690.0,0.01735694]
[1752856191315,1.6133013,117700.0,117690.0,0.01735694]
[1752856191514,2.12534058,117700.0,117690.0,0.01735694]
[1752856192111,1.6133013,117700.0,117690.0,0.01735694]
[1752856192610,1.6153013,117700.0,117690.0,0.01835694]
[1752856192915,2.12734058,117700.0,117690.0,0.01835694]
[1752856193513,2.12734058,117700.0,117690.0,4e-08]
[1752856193713,2.12734058,117700.0,117680.0,0.01735972]
[1752856193714,0.2699156,117690.0,117680.0,0.01735972]
[1752856194013,1.14275488,117690.0,117680.0,0.01735972]
[1752856195017,0.6307156,117690.0,117680.0,0.01735972]
[1752856196207,0.6337156,117690.0,117680.0,0.01735972]
[1752856196407,0.6337156,117690.0,117680.0,0.08631972]
[1752856196617,1.2554756,117690.0,117680.0,0.09979972]
[1752856196813,1.2614756,117690.0,117680.0,0.06516972]
[1752856197015,1.2614756,117690.0,117680.0,0.01835972]
[1752856198110,1.77351488,117690.0,117680.0,2e-08]
[1752856199423,1.2614756,117690.0,117680.0,2e-08]
[1752856201119,0.2174034,117650.0,117640.0,0.86832878]
[1752856201315,0.5782034,117650.0,117640.0,0.78337718]
[1752856201814,0.5782034,117650.0,117640.0,0.61344928]
[1752856202020,0.6121634,117650.0,117640.0,0.61344928]
[1752856202220,0.6453534,117650.0,117640.0,0.10141]
[1752856202419,0.6463534,117650.0,117640.0,0.05989]
[1752856202821,0.66501965,117650.0,117640.0,0.004]
[1752856203225,0.66501965,117650.0,117640.0,0.09477]
[1752856203427,0.66501965,117650.0,117640.0,0.65232928]
[1752856203722,1.17201965,117650.0,117640.0,0.82225708]
[1752856204326,1.23916965,117650.0,117640.0,0.14029]
[1752856204628,1.23916965,117650.0,117640.0,0.11801]
[1752856205026,1.23916965,117650.0,117640.0,0.09477]
[1752856205427,1.21946965,117650.0,117640.0,0.82225718]
[1752856205623,1.21946965,117650.0,117640.0,0.65232928]
[1752856205824,1.21946965,117650.0,117640.0,0.14029]
[1752856205825,1.28661965,117650.0,117640.0,0.14029]
[1752856206328,1.28661965,117650.0,117640.0,0.11801]
[1752856207127,1.28661965,117650.0,117640.0,0.14029]
[1752856207327,1.28661965,117650.0,117640.0,0.3102179]
[1752856207528,1.28661965,117650.0,117640.0,0.14029]
[1752856208128,1.28661965,117650.0,117640.0,0.82225718]
[1752856208319,1.28661965,117650.0,117640.0,0.14029]
[1752856208725,1.79865893,117650.0,117640.0,0.004]
[1752856209124,1.75116893,117650.0,117640.0,0.004]
[1752856210528,0.1699423,117630.0,117620.0,0.08352]
[1752856210723,1.5802923,117630.0,117620.0,0.01449]
[1752856210929,0.2039168,117620.0,117610.0,0.09303312]
[1752856211129,0.5979068,117620.0,117610.0,0.09303312]
[1752856211527,0.5979068,117620.0,117610.0,0.26300432]
[1752856211725,1.1863168,117620.0,117610.0,0.7750436]
[1752856211926,0.5307568,117620.0,117610.0,0.7750436]
[1752856212320,0.1699568,117620.0,117610.0,0.84168985]
[1752856212626,1.2807785,117630.0,117620.0,0.3092468]
[1752856212826,1.2807785,117630.0,117620.0,0.82128608]
[1752856213028,1.2797785,117630.0,117620.0,0.64832928]
[1752856213227,1.2797785,117630.0,117620.0,0.81828588]
[1752856213421,0.3608,117630.0,117620.0,0.81828588]
[1752856213625,0.5307422,117630.0,117620.0,1.23831788]
[1752856213838,0.5327422,117630.0,117620.0,1.23931788]
[1752856214125,0.002,117630.0,117620.0,1.60011788]
[1752856214326,0.67683365,117650.0,117640.0,0.2917277]
[1752856214626,0.67994365,117650.0,117640.0,0.81825698]
[1752856214831,0.70366365,117650.0,117640.0,0.81825698]
[1752856215027,0.4032756,117660.0,117650.0,0.2534333]
[1752856215228,0.6156446,117670.0,117660.0,0.1698988]
[1752856215427,0.3608,117670.0,117660.0,0.76545808]
[1752856215732,0.5731437,117680.0,117670.0,0.2389144]
[1752856215930,0.5306699,117680.0,117670.0,0.77481727]
[1752856216930,0.5306699,117680.0,117670.0,0.26277799]
[1752856217132,0.5646299,117680.0,117670.0,0.76544368]
[1752856217331,0.5976499,117680.0,117670.0,0.76544368]
[1752856217733,0.5646299,117680.0,117670.0,0.76544368]
[1752856217936,0.5646299,117680.0,117670.0,0.59555928]
[1752856217937,0.5306699,117680.0,117670.0,0.59555928]
[1752856218236,0.61654321,117680.0,117670.0,0.59555928]
[1752856218431,0.5976499,117680.0,117670.0,0.76544368]
[1752856218636,0.5976499,117680.0,117670.0,0.2534044]
[1752856218938,0.5656299,117680.0,117670.0,0.2544044]
[1752856219131,0.5656299,117680.0,117670.0,0.76644368]
[1752856219934,0.5316699,117680.0,117670.0,0.76644368]
[1752856220138,0.5316699,117680.0,117670.0,0.81921368]
[1752856220637,0.5316699,117680.0,117670.0,0.82874278]
[1752856222337,0.5346599,117680.0,117670.0,0.82874278]
[1752856222639,0.5821499,117680.0,117670.0,0.82874268]
[1752856223032,0.6161099,117680.0,117670.0,0.82874268]
[1752856225839,0.5821499,117680.0,117670.0,0.82874268]
[1752856227132,0.3618,117680.0,117670.0,0.82874268]
[1752856227334,0.001,117680.0,117670.0,0.82874268]
[1752856227539,0.55224604,117700.0,117690.0,0.2916555]
[1752856227736,0.55224604,117700.0,117690.0,0.81818478]
[1752856228043,0.54925604,117700.0,117690.0,0.81818478]
[1752856228438,0.5811224,117700.0,117690.0,0.81818478]
[1752856228844,0.6501024,117700.0,117690.0,0.9272255]
[1752856229045,0.6559724,117700.0,117690.0,0.8827055]
[1752856229344,0.6210824,117700.0,117690.0,1.44026478]
[1752856229942,0.6210824,117700.0,117690.0,0.9282255]
[1752856230145,0.6210824,117700.0,117690.0,1.44026478]
[1752856230542,0.6541024,117700.0,117690.0,1.44026478]
[1752856230742,0.6541024,117700.0,117690.0,0.13729]
[1752856231046,1.78878168,117700.0,117690.0,0.001]
[1752856231241,1.80774824,117700.0,117690.0,0.001]
[1752856231547,1.29570896,117700.0,117690.0,0.001]
[1752856231844,1.29570896,117700.0,117690.0,0.1708555]
[1752856232045,1.1069,117700.0,117690.0,0.1708555]
[1752856232240,1.10522,117700.0,117690.0,0.81682478]
[1752856232441,0.006,117700.0,117690.0,1.43778478]
[1752856234546,0.006,117700.0,117690.0,1.79858478]
[1752856235341,0.006,117700.0,117690.0,1.60771278]
[1752856235544,0.1758409,117700.0,117690.0,1.43778478]
[1752856236047,0.006,117700.0,117690.0,1.43766478]
[1752856236848,0.5366409,117700.0,117690.0,0.81682478]
[1752856237050,0.5366409,117700.0,117690.0,1.43762478]
[1752856237451,0.5366409,117700.0,117690.0,0.64696928]
[1752856237744,0.6562209,117700.0,117690.0,0.08875]
[1752856238546,0.6545809,117700.0,117690.0,0.3047853]
[1752856238743,0.6221309,117700.0,117690.0,0.81682458]
[1752856239351,0.6545809,117700.0,117690.0,0.81682458]
[1752856239963,0.6221309,117700.0,117690.0,0.64696928]
[1752856240357,0.6545809,117700.0,117690.0,0.81682448]
[1752856240551,0.6545809,117700.0,117690.0,0.64696928]
[1752856240855,0.5864409,117700.0,117690.0,1.43750448]
[1752856241246,0.6221309,117700.0,117690.0,1.43750448]
[1752856241448,0.5864409,117700.0,117690.0,1.43750448]
[1752856241950,0.5864409,117700.0,117690.0,0.81682448]
[1752856242148,0.5864409,117700.0,117690.0,0.64696928]
[1752856242344,0.5366409,117700.0,117690.0,0.81682448]
[1752856242552,0.3668,117700.0,117690.0,0.81682448]
[1752856242852,0.5366407,117700.0,117690.0,0.81682448]
[1752856243053,0.3668,117700.0,117690.0,0.81682448]
[1752856243455,0.5366407,117700.0,117690.0,0.81682448]
[1752856246253,0.3668,117700.0,117690.0,0.81682448]
[1752856247155,0.3668,117700.0,117690.0,0.87764806]
[1752856247353,0.006,117700.0,117690.0,0.87764806]
[1752856247558,0.5366407,117700.0,117690.0,0.87764806]
[1752856247947,0.3668,117700.0,117690.0,0.87764806]
[1752856249152,0.006,117700.0,117690.0,0.87764806]
[1752856249357,0.63431264,117720.0,117710.0,0.2225663]
[1752856249558,0.63431264,117720.0,117710.0,1.43619558]
[1752856249756,0.5730804,117720.0,117710.0,1.43619558]
[1752856249955,0.5730804,117720.0,117710.0,0.64596928]
[1752856250155,0.5730804,117720.0,117710.0,0.81579558]
[1752856250552,0.5837704,117720.0,117710.0,0.81579558]
[1752856250748,0.6309404,117720.0,117710.0,0.81579558]
[1752856251749,0.6369404,117720.0,117710.0,0.81679558]
[1752856253458,0.6369404,117720.0,117710.0,0.64696928]
[1752856253759,1.58555968,117720.0,117710.0,0.001]
[1752856253953,1.58555968,117720.0,117690.0,0.06082358]
[1752856253954,0.2994807,117700.0,117690.0,0.06082358]
[1752856254159,0.6602807,117700.0,117690.0,0.06082358]
[1752856254462,0.2918552,117690.0,117680.0,0.98486038]
[1752856254658,0.6526552,117690.0,117680.0,0.98486038]
[1752856254860,0.6526552,117690.0,117680.0,0.98482318]